fUSD/lending_fUSD_20250301
["ID","MTS","AMOUNT","RATE_DAILY","PERIOD"]
[354965950,1740849042134,-503.95,0.00027215,2]
[354965952,1740849042144,-500.0,0.00027215,2]
[354965954,1740849042155,-500.0,0.00027215,2]
[354965957,1740849042165,-603.41,0.00027215,2]
[354965958,1740849042175,-500.0,0.00027215,2]
[354965960,1740849042185,-500.0,0.00027215,2]
[354965962,1740849042195,-674.6,0.00027215,2]
[354965965,1740849042206,-500.0,0.00027215,2]
[354965967,1740849042215,-893.46,0.00027215,2]
[354965969,1740849042225,-631.14,0.00027215,2]
[354965971,1740849042235,-500.0,0.00027215,2]
[354965973,1740849042244,-500.0,0.00027215,2]
[354965975,1740849042253,-500.0,0.00027215,2]
[354965977,1740849042263,-1043.36,0.00027215,2]
[354965979,1740849042272,-707.13,0.00027215,2]
[354965981,1740849042282,-500.0,0.00027215,2]
[354965983,1740849042292,-500.0,0.00027215,2]
[354965985,1740849042301,-707.87,0.00027215,2]
[354965987,1740849042311,-672.68,0.00027215,2]
[354965989,1740849042320,-500.0,0.00027215,2]
[354965991,1740849042329,-653.06,0.00027215,2]
[354965993,1740849042340,-500.0,0.00027215,2]
[354965995,1740849042349,-500.0,0.00027215,2]
[354965997,1740849042359,-809.83,0.00027215,2]
[354965999,1740849042368,-511.8,0.00027215,2]
[354966001,1740849042377,-500.0,0.00027215,2]
[354966003,1740849042386,-500.0,0.00027215,2]
[354966005,1740849042396,-500.0,0.00027215,2]
[354966007,1740849042405,-500.0,0.00027215,2]
[354966009,1740849042414,-517.23,0.00027215,2]
[354966011,1740849042425,-500.0,0.00027215,2]
[354966013,1740849042434,-500.0,0.00027215,2]
[354966015,1740849042444,-635.79,0.00027215,2]
[354966017,1740849042454,-500.0,0.00027215,2]
[354966020,1740849042464,-575.0,0.00027215,2]
[354966021,1740849042475,-537.91,0.00027215,2]
[354966023,1740849042484,-1223.39,0.00027215,2]
[354966025,1740849042494,-500.0,0.00027215,2]
[354966027,1740849042503,-500.0,0.00027215,2]
[354966030,1740849042514,-946.89,0.00027215,2]
[354966032,1740849042523,-500.0,0.00027215,2]
[354966034,1740849042532,-847.68,0.00027215,2]
[354966036,1740849042542,-500.0,0.00027215,2]
[354966038,1740849042551,-553.29,0.00027215,2]
[354966041,1740849042560,-555.13,0.00027215,2]
[354966043,1740849042569,-689.3,0.00027215,2]
[354966045,1740849042579,-500.0,0.00027215,2]
[354966047,1740849042589,-797.43,0.00027215,2]
[354966049,1740849042599,-1125.37,0.00027215,2]
[354966051,1740849042610,-1289.55,0.00027215,2]
[354966053,1740849042620,-500.0,0.00027215,2]
[354966055,1740849042630,-860.73,0.00027215,2]
[354966057,1740849042640,-500.0,0.00027215,2]
[354966059,1740849042649,-500.0,0.00027215,2]
[354966061,1740849042659,-530.34,0.00027215,2]
[354966063,1740849042669,-1011.27,0.00027215,2]
[354966065,1740849042679,-593.04,0.00027215,2]
[354966067,1740849042689,-694.75,0.00027215,2]
[354966069,1740849042698,-643.47,0.00027215,2]
[354966071,1740849042710,-500.0,0.00027215,2]
[354966073,1740849042720,-811.03,0.00027215,2]
[354966075,1740849042730,-1988.38,0.00027215,2]
[354966077,1740849042740,-1559.52,0.00027215,2]
[354966079,1740849042749,-500.0,0.00027215,2]
[354966081,1740849042759,-598.89,0.00027215,2]
[354966083,1740849042768,-1103.11,0.00027215,2]
[354966085,1740849042778,-553.2,0.00027215,2]
[354966087,1740849042787,-500.0,0.00027215,2]
[354966089,1740849042797,-998.99,0.00027215,2]
[354966091,1740849042806,-224.97873158,0.00027215,2]
[354966093,1740849042816,-500.0,0.00027215,2]
[354966095,1740849042826,-875.43,0.00027215,2]
[354966097,1740849042835,-516.12,0.00027215,2]
[354966098,1740849042845,-500.0,0.00027215,2]
[354966100,1740849042854,-3445.99,0.00027215,2]
[354966102,1740849042863,-500.0,0.00027215,2]
[354966104,1740849042873,-552.17841955,0.00027215,2]
[354966106,1740849042883,-1578.51,0.00027215,2]
[354966108,1740849042893,-582.87,0.00027215,2]
[354966110,1740849042903,-500.0,0.00027215,2]
[354966112,1740849042912,-850.38,0.00027215,2]
[354966114,1740849042922,-860.29,0.00027215,2]
[354966116,1740849042932,-1644.16,0.00027215,2]
[354966118,1740849042942,-627.58,0.00027215,2]
[354966120,1740849042951,-500.0,0.00027215,2]
[354966122,1740849042960,-642.9,0.00027215,2]
[354966124,1740849042969,-500.0,0.00027215,2]
[354966126,1740849042979,-646.18,0.00027215,2]
[354966128,1740849042988,-500.0,0.00027215,2]
[354966130,1740849042998,-500.0,0.00027215,2]
[354966132,1740849043009,-500.0,0.00027215,2]
[354966134,1740849043019,-533.2,0.00027215,2]
[354966136,1740849043030,-1065.28,0.00027215,2]
[354966138,1740849043041,-500.0,0.00027215,2]
[354966140,1740849043051,-500.0,0.00027215,2]
[354966142,1740849043060,-1061.85,0.00027215,2]
[354966144,1740849043069,-500.0,0.00027215,2]
[354966146,1740849043079,-514.94,0.00027215,2]
[354966148,1740849043089,-1254.89,0.00027215,2]
[354966150,1740849043098,-500.0,0.00027215,2]
[354966152,1740849043107,-682.57,0.00027215,2]
[354966153,1740849043118,-600.22,0.00027215,2]
[354966155,1740849043127,-1285.91,0.00027215,2]
[354966158,1740849043138,-500.0,0.00027215,2]
[354966159,1740849043148,-500.0,0.00027215,2]
[354966161,1740849043158,-757.48,0.00027215,2]
[354966163,1740849043167,-500.0,0.00027215,2]
[354966166,1740849043176,-592.18,0.00027215,2]
[354966168,1740849043186,-500.0,0.00027215,2]
[354966171,1740849043196,-647.49762492,0.00027217,2]
[354966174,1740849043205,-216.96532344,0.00027217,2]
[354966176,1740849043216,-183.71189088,0.00027217,2]
[354966178,1740849043225,-9491.31985077,0.00027217,2]
[354966180,1740849043237,-4460.0,0.0002726,2]
[354966182,1740849043246,-160.2676877,0.00027273,2]
[354966184,1740849043256,-176.09270392,0.00027275,2]
[354966186,1740849043266,-300.0,0.00027285,10]
[354966188,1740849043275,-666.0,0.00027285,2]
[354966190,1740849043284,-674.94744788,0.00027285,2]
[354966192,1740849043294,-500.0,0.00027286,2]
[354966194,1740849043303,-500.0,0.00027286,2]
[354966196,1740849043313,-571.97,0.00027286,2]
[354966198,1740849043322,-771.43,0.00027286,2]
[354966200,1740849043333,-500.0,0.00027286,2]
[354966202,1740849043342,-500.0,0.00027286,2]
[354966204,1740849043352,-1059.31,0.00027286,2]
[354966206,1740849043362,-750.45,0.00027286,2]
[354966208,1740849043372,-1037.78,0.00027286,2]
[354966210,1740849043381,-662.75,0.00027286,2]
[354966212,1740849043391,-749.89,0.00027286,2]
[354966214,1740849043400,-988.81,0.00027286,2]
[354966215,1740849043410,-851.1,0.00027286,2]
[354966217,1740849043420,-572.96,0.00027286,2]
[354966219,1740849043429,-500.0,0.00027286,2]
[354966221,1740849043439,-739.44,0.00027286,2]
[354966223,1740849043448,-763.51,0.00027286,2]
[354966225,1740849043458,-1031.58,0.00027286,2]
[354966227,1740849043467,-500.0,0.00027286,2]
[354966229,1740849043477,-500.0,0.00027286,2]
[354966231,1740849043487,-695.94,0.00027286,2]
[354966233,1740849043496,-500.0,0.00027286,2]
[354966235,1740849043506,-500.0,0.00027286,2]
[354966237,1740849043516,-500.0,0.00027286,2]
[354966239,1740849043526,-500.0,0.00027286,2]
[354966241,1740849043536,-592.36,0.00027286,2]
[354966243,1740849043545,-535.2,0.00027286,2]
[354966245,1740849043555,-1043.29,0.00027286,2]
[354966246,1740849043565,-500.0,0.00027286,2]
[354966248,1740849043575,-614.5,0.00027286,2]
[354966250,1740849043585,-923.62,0.00027286,2]
[354966252,1740849043595,-887.05,0.00027286,2]
[354966254,1740849043604,-508.79,0.00027286,2]
[354966256,1740849043614,-742.35,0.00027286,2]
[354966258,1740849043624,-500.0,0.00027286,2]
[354966260,1740849043634,-724.69,0.00027286,2]
[354966262,1740849043644,-500.0,0.00027286,2]
[354966264,1740849043654,-500.0,0.00027286,2]
[354966266,1740849043664,-570.97,0.00027286,2]
[354966268,1740849043673,-846.22,0.00027286,2]
[354966270,1740849043683,-614.26,0.00027286,2]
[354966272,1740849043693,-500.0,0.00027286,2]
[354966274,1740849043702,-646.1,0.00027286,2]
[354966276,1740849043712,-300.64571051,0.00027286,2]
[354966278,1740849043721,-781.01,0.00027286,2]
[354966280,1740849043731,-911.07,0.00027286,2]
[354966282,1740849043740,-500.0,0.00027286,2]
[354966284,1740849043749,-734.03,0.00027286,2]
[354966285,1740849043758,-500.0,0.00027286,2]
[354966287,1740849043768,-958.12,0.00027286,2]
[354966289,1740849043777,-1430.96,0.00027286,2]
[354966291,1740849043787,-2705.75,0.00027286,2]
[354966293,1740849043797,-813.87,0.00027286,2]
[354966295,1740849043806,-585.19,0.00027286,2]
[354966297,1740849043815,-500.0,0.00027286,2]
[354966299,1740849043826,-500.0,0.00027286,120]
[354966301,1740849043835,-526.58,0.00027286,2]
[354966303,1740849043845,-881.01,0.00027286,2]
[354966305,1740849043854,-992.55,0.00027286,2]
[354966307,1740849043864,-991.72,0.00027286,2]
[354966309,1740849043873,-1084.49,0.00027286,2]
[354966311,1740849043883,-500.0,0.00027286,2]
[354966313,1740849043893,-900.32,0.00027286,2]
[354966315,1740849043902,-500.0,0.00027286,2]
[354966317,1740849043912,-571.53,0.00027286,2]
[354966319,1740849043921,-1821.24,0.00027286,2]
[354966321,1740849043930,-500.0,0.00027286,2]
[354966322,1740849043939,-500.0,0.00027286,2]
[354966324,1740849043948,-500.0,0.00027286,2]
[354966326,1740849043958,-500.0,0.00027286,2]
[354966328,1740849043968,-500.0,0.00027286,2]
[354966330,1740849043977,-300.0,0.00027293,10]
[354966332,1740849043987,-8896.05,0.00027294,2]
[354966334,1740849043997,-1571.72,0.00027294,2]
[354966336,1740849044007,-300.0,0.00027295,10]
[354966338,1740849044016,-651.69348205,0.00027295,6]
[354966340,1740849044026,-150675.3699503,0.00027295,6]
[354966343,1740849044049,-625.42636932,0.00027295,6]
[354966391,1740849044531,-226.65816176,0.00027174,2]
[354966393,1740849044544,-523.89,0.00027214,2]
[354966395,1740849044555,-19.05184874,0.00027295,6]
[354966397,1740849044577,-955.06748333,0.00027295,6]
[354966399,1740849044589,-2846.52978326,0.00027295,6]
[354966472,1740849045509,-217.84654335,0.00027217,2]
[354966475,1740849045518,-419.09848915,0.00027295,6]
[354966478,1740849045530,-772.82854254,0.00027295,6]
[354966481,1740849045541,-2761.96970171,0.00027295,6]
[354966484,1740849045553,-5883.94832222,0.00027295,6]
[354966487,1740849045565,-1360.84995,0.00027295,6]
[354966490,1740849045577,-9792.47407275,0.00027295,6]
[354966494,1740849045589,-6733.00100985,0.00027295,6]
[354966498,1740849045602,-151258.54427506,0.00027295,6]
[354966502,1740849045615,-698.384581,0.00027295,6]
[354966507,1740849045627,-7155.89828018,0.00027295,6]
[354966512,1740849045643,-6128.10690623,0.00027295,6]
[354966515,1740849045655,-6660.35750267,0.00027295,6]
[354966518,1740849045667,-1530.82074437,0.00027295,6]
[354966522,1740849045680,-435.50221154,0.00027295,6]
[354966526,1740849045691,-322.4151773,0.00027295,6]
[354966529,1740849045703,-644.98480463,0.00027295,6]
[354966532,1740849045715,-8880.41721204,0.00027295,6]
[354966537,1740849045731,-1863.56485089,0.00027295,6]
[354966540,1740849045743,-294.14994472,0.00027295,6]
[354966615,1740849046119,-1843.65503833,0.00027295,6]
[354966618,1740849046131,-1518.67982264,0.00027295,6]
[354966621,1740849046143,-1839276.01162606,0.00027295,6]
[354966625,1740849046155,-300.0,0.00027295,10]
[354966628,1740849046164,-500.0,0.00027295,2]
[354966632,1740849046176,-1026.72,0.00027295,2]
[354966635,1740849046186,-500.0,0.00027295,2]
[354966638,1740849046195,-1226.02,0.00027295,2]
[354966641,1740849046205,-500.0,0.00027296,2]
[354966644,1740849046215,-192.10823699,0.00027296,2]
[354966647,1740849046224,-444.96408288,0.00027296,2]
[354966650,1740849046235,-500.0,0.00027296,2]
[354966653,1740849046245,-512.55,0.00027296,2]
[354966656,1740849046256,-605.78,0.00027296,2]
[354966659,1740849046266,-500.0,0.00027296,2]
[354966662,1740849046275,-540.38,0.00027296,2]
[354966665,1740849046285,-500.0,0.00027296,2]
[354966668,1740849046294,-500.0,0.00027296,2]
[354966671,1740849046303,-500.0,0.00027296,2]
[354966674,1740849046313,-500.0,0.00027296,2]
[354966676,1740849046322,-500.0,0.00027296,2]
[354966679,1740849046332,-500.0,0.00027296,2]
[354966682,1740849046341,-500.0,0.00027296,2]
[354966685,1740849046350,-575.93,0.00027296,2]
[354966688,1740849046360,-500.0,0.00027296,2]
[354966691,1740849046370,-500.0,0.00027296,2]
[354966694,1740849046380,-500.0,0.00027296,2]
[354966697,1740849046389,-503.8197294,0.00027296,7]
[354966700,1740849046400,-500.0,0.00027296,2]
[354966703,1740849046410,-747.77,0.00027296,2]
[354966706,1740849046419,-504.35,0.00027296,2]
[354966709,1740849046430,-500.0,0.00027296,2]
[354966712,1740849046440,-500.0,0.00027296,2]
[354966715,1740849046450,-500.0,0.00027296,2]
[354966718,1740849046460,-500.0,0.00027296,2]
[354966721,1740849046470,-500.0,0.00027296,2]
[354966724,1740849046479,-620.8,0.00027296,2]
[354966727,1740849046489,-500.0,0.00027296,2]
[354966728,1740849046499,-500.0,0.00027296,2]
[354966730,1740849046508,-500.0,0.00027296,2]
[354966746,1740849046590,-606.26,0.00027296,2]
[354966749,1740849046600,-500.0,0.00027296,2]
[354966752,1740849046610,-555.12,0.00027296,2]
[354966755,1740849046620,-626.25,0.00027296,2]
[354966758,1740849046629,-500.0,0.00027296,2]
[354966761,1740849046639,-554.97,0.00027296,2]
[354966764,1740849046648,-300.0,0.00027296,2]
[354966767,1740849046658,-765.34,0.00027296,2]
[354966770,1740849046668,-500.0,0.00027296,2]
[354966773,1740849046678,-555.99,0.00027296,2]
[354966776,1740849046687,-500.0,0.00027296,2]
[354966779,1740849046697,-500.0,0.00027296,2]
[354966782,1740849046706,-500.0,0.00027296,2]
[354966785,1740849046716,-500.0,0.00027296,2]
[354966788,1740849046725,-903.12,0.00027296,2]
[354966791,1740849046734,-500.0,0.00027296,2]
[354966794,1740849046743,-1119.63,0.00027296,2]
[354966796,1740849046752,-500.0,0.00027296,2]
[354966799,1740849046762,-500.0,0.00027296,2]
[354966802,1740849046771,-500.0,0.00027296,2]
[354966805,1740849046780,-619.56,0.00027296,2]
[354966808,1740849046790,-500.0,0.00027296,2]
[354966811,1740849046799,-986.03,0.00027296,2]
[354966814,1740849046808,-560.34,0.00027296,2]
[354966817,1740849046818,-500.0,0.00027296,2]
[354966820,1740849046827,-500.0,0.00027296,2]
[354966822,1740849046836,-500.0,0.00027296,2]
[354966826,1740849046845,-523.37,0.00027296,2]
[354966829,1740849046855,-500.0,0.00027296,2]
[354966832,1740849046865,-1030.01,0.00027296,2]
[354966835,1740849046874,-500.0,0.00027296,2]
[354966837,1740849046884,-500.0,0.00027296,2]
[354966840,1740849046893,-500.0,0.00027296,2]
[354966843,1740849046902,-500.0,0.00027296,2]
[354966845,1740849046911,-500.0,0.00027296,2]
[354966848,1740849046920,-500.0,0.00027296,2]
[354966851,1740849046930,-500.0,0.00027296,2]
[354966854,1740849046939,-500.0,0.00027296,2]
[354966857,1740849046948,-500.0,0.00027296,2]
[354966860,1740849046957,-500.0,0.00027296,2]
[354966863,1740849046967,-460.25201513,0.00027296,2]
[354966865,1740849046976,-522.49,0.00027296,2]
[354966868,1740849046986,-741.1,0.00027296,2]
[354966871,1740849046995,-500.0,0.00027296,2]
[354966873,1740849047004,-819.7,0.00027296,2]
[354966876,1740849047014,-684.92,0.00027296,2]
[354966879,1740849047023,-2385.4,0.00027296,2]
[354966881,1740849047034,-500.0,0.00027296,2]
[354966884,1740849047046,-500.0,0.00027296,2]
[354966886,1740849047055,-557.65,0.00027296,2]
[354966888,1740849047064,-823.94,0.00027296,2]
[354966891,1740849047074,-500.0,0.00027296,2]
[354966894,1740849047083,-500.0,0.00027296,2]
[354966896,1740849047093,-500.0,0.00027296,2]
[354966899,1740849047103,-500.0,0.00027296,2]
[354966902,1740849047113,-868.49,0.00027296,2]
[354966904,1740849047123,-1336.88,0.00027296,2]
[354966907,1740849047133,-500.0,0.00027296,2]
[354966910,1740849047142,-500.0,0.00027296,2]
[354966913,1740849047152,-1140.46664,0.00027296,2]
[354966915,1740849047160,-500.0,0.00027296,2]
[354966917,1740849047170,-756.38,0.00027296,2]
[354966920,1740849047180,-500.0,0.00027296,2]
[354966923,1740849047189,-769.29,0.00027296,2]
[354966925,1740849047198,-938.97,0.00027296,2]
[354966928,1740849047208,-500.0,0.00027296,2]
[354966931,1740849047217,-1111.19,0.00027296,2]
[354966934,1740849047227,-529.29,0.00027296,2]
[354966937,1740849047235,-529.29,0.00027296,2]
[354966939,1740849047244,-529.29,0.00027296,2]
[354966942,1740849047253,-529.29,0.00027296,2]
[354966945,1740849047263,-529.29,0.00027296,2]
[354966948,1740849047272,-529.29,0.00027296,2]
[354966950,1740849047281,-529.29,0.00027296,2]
[354966953,1740849047291,-500.0,0.00027296,2]
[354966956,1740849047300,-529.29,0.00027296,2]
[354966957,1740849047309,-500.0,0.00027296,2]
[354966960,1740849047319,-529.29,0.00027296,2]
[354966963,1740849047330,-1523.56,0.00027296,2]
[354966966,1740849047339,-529.29,0.00027296,2]
[354966969,1740849047349,-529.29,0.00027296,2]
[354966972,1740849047358,-529.29,0.00027296,2]
[354966974,1740849047368,-529.29,0.00027296,2]
[354966977,1740849047377,-529.29,0.00027296,2]
[354966980,1740849047386,-529.29,0.00027296,2]
[354966982,1740849047396,-529.29,0.00027296,2]
[354966984,1740849047405,-529.29,0.00027296,2]
[354966987,1740849047414,-529.29,0.00027296,2]
[354966989,1740849047424,-529.29,0.00027296,2]
[354966992,1740849047433,-529.29,0.00027296,2]
[354966994,1740849047442,-529.29,0.00027296,2]
[354966997,1740849047452,-529.29,0.00027296,2]
[354966999,1740849047462,-529.29,0.00027296,2]
[354967002,1740849047471,-529.32482399,0.00027296,2]
[354967004,1740849047481,-1523.17,0.00027296,2]
[354967007,1740849047490,-3192.79,0.00027296,2]
[354967009,1740849047500,-500.0,0.00027296,2]
[354967012,1740849047509,-500.0,0.00027296,2]
[354967014,1740849047518,-25057.37,0.00027296,2]
[354967017,1740849047528,-500.0,0.00027296,2]
[354967020,1740849047538,-1226.12,0.00027296,2]
[354967022,1740849047547,-500.0,0.00027296,2]
[354967025,1740849047556,-1568.97,0.00027296,2]
[354967028,1740849047566,-816.94,0.00027296,2]
[354967030,1740849047575,-732.23,0.00027296,2]
[354967032,1740849047585,-4043.94,0.00027296,2]
[354967034,1740849047594,-17920.02,0.00027296,2]
[354967036,1740849047603,-500.0,0.00027296,2]
[354967038,1740849047613,-3161.58,0.00027296,2]
[354967040,1740849047623,-500.0,0.00027296,2]
[354967041,1740849047632,-5622.74,0.00027296,2]
[354967043,1740849047641,-1134.3,0.00027296,2]
[354967046,1740849047651,-500.0,0.00027296,2]
[354967049,1740849047661,-500.0,0.00027296,2]
[354967052,1740849047671,-1869.02,0.00027296,2]
[354967055,1740849047683,-844.6,0.00027296,2]
[354967058,1740849047693,-500.0,0.00027296,2]
[354967061,1740849047703,-100000.0,0.00027297,5]
[354967064,1740849047712,-604494.04629656,0.00027297,2]
[354967068,1740849047726,-295595.41688485,0.00027297,2]
[354967072,1740849047741,-42552.51420001,0.00027297,2]
[354967076,1740849047753,-3253.2053238,0.00027297,2]
[354967097,1740849047886,-1061.34995728,0.00027297,2]
[354967101,1740849047910,-276.09998086,0.00027297,2]
[354967103,1740849047923,-1080.500025,0.00027297,2]
[354967105,1740849047935,-14431.29108546,0.00027297,2]
[354967107,1740849047946,-4625.59999999,0.00027297,2]
[354967109,1740849047958,-2414.399982,0.00027297,2]
[354967112,1740849047969,-11739.8999994,0.00027297,2]
[354967114,1740849047981,-3299.8678,0.00027297,2]
[354967116,1740849047992,-1098.63314,0.00027297,2]
[354967118,1740849048003,-1432.2382,0.00027297,2]
[354967123,1740849048023,-711.34087542,0.00027297,2]
[354967126,1740849048035,-3186.1394754,0.00027297,2]
[354967129,1740849048051,-411.39293921,0.00027297,2]
[354968136,1740849908175,50000.0,0.00015,2]
[354968145,1740850052307,3028.82224612,0.000141,2]
[354968147,1740850079537,52087.95996995,0.0001,2]
[354968149,1740850154974,-572.27407165,0.000149,2]
[354968180,1740850231908,-1193.5625129,0.000149,2]
[354968181,1740850231918,-161.87440624,0.000149,2]
[354968182,1740850231929,-410.24918246,0.00014973,2]
[354968183,1740850231939,-500.0,0.00014999,2]
[354968184,1740850231950,-161.47485801,0.00014999,2]
[354968185,1740850231959,-3702.9101333,0.00015,2]
[354968186,1740850231972,-4232.56611195,0.00015,2]
[354968187,1740850232029,-254.80216565,0.00015,2]
[354968188,1740850232042,-758.38503925,0.00015,2]
[354968189,1740850232055,-33349.1274124,0.00015,2]
[354968190,1740850232090,-609.22209795,0.00015,2]
[354968191,1740850232148,-334.50747262,0.00015,2]
[354968236,1740850237769,-501.54078235,0.00015,2]
[354968237,1740850237880,-427.1989449,0.00015,2]
[354968238,1740850237892,-1800.0,0.00015,2]
[354968339,1740850239912,-4307.56043718,0.00015,2]
[354968354,1740850240235,-18644.44455878,0.00015,2]
[354968357,1740850240256,-3107.85901998,0.00015,2]
[354968625,1740850242894,-392.29490377,0.00015,2]
[354968716,1740850243899,-293.86565485,0.00015,2]
[354968719,1740850243920,-14820.35896906,0.00015,2]
[354968972,1740850246425,-2444.63,0.00015,2]
[354968981,1740850246503,-8462.3,0.00015,2]
[354969120,1740850533101,-161.87440623,0.000149,2]
[354969121,1740850533134,-150.8092802,0.000149,2]
[354969122,1740850533166,-500.0,0.00014999,2]
[354969123,1740850533198,-500.0,0.00014999,2]
[354969124,1740850533233,-361.30131924,0.00014999,2]
[354969125,1740850533263,-300.0,0.00014999,2]
[354969126,1740850533292,-666.0,0.00014999,2]
[354969127,1740850533322,-161.87440623,0.00015,2]
[354969128,1740850533339,-150.8092802,0.00015,2]
[354969129,1740850533351,-500.0,0.00015,2]
[354969130,1740850533363,-500.0,0.00015,2]
[354969131,1740850533376,-361.30131924,0.00015,2]
[354969132,1740850533392,-300.0,0.00015,2]
[354969133,1740850533404,-666.0,0.00015,2]
[354969134,1740850533423,-128927.02998866,0.00015,2]
[354969135,1740850615333,-151.10544118,0.000149,2]
[354969136,1740850615360,-1718072.67988969,0.00015,2]
[354969137,1740850615384,-1537111.46308682,0.00015,2]
[354969138,1740850661989,283.48922486,0.00014999,2]
[354969139,1740850683864,-500.0,0.00015273,2]
[354969140,1740850683889,-150.0,0.0001541,2]
[354969141,1740850683912,-450.0,0.0001541,2]
[354969142,1740850683936,-500.0,0.00015547,2]
[354969143,1740850683961,-500.0,0.00015821,2]
[354969144,1740850683986,-150.0,0.00015821,2]
[354969145,1740850695482,-500.0,0.00016095,2]
[354969146,1740850695504,-500.0,0.00016369,2]
[354969147,1740850695524,-500.0,0.00016643,2]
[354969148,1740850695547,-150.0,0.000168,2]
[354969149,1740850695569,-450.0,0.000168,2]
[354969150,1740850695594,-500.0,0.00016917,2]
[354969151,1740850695841,-500.0,0.00017191,2]
[354969152,1740850695866,-500.0,0.00017465,2]
[354969153,1740850695888,-417.39264095,0.000176,2]
[354969154,1740850695911,-417.3926408,0.000176,2]
[354969155,1740850695932,-500.0,0.00017739,2]
[354969156,1740850695953,-500.0,0.00018013,2]
[354969157,1740850695973,-150.8092802,0.0001815,2]
[354969158,1740850695995,-417.3926408,0.00018245,2]
[354969159,1740850696016,-500.0,0.00018287,2]
[354969160,1740850696037,-500.0,0.00018561,2]
[354969161,1740850696058,-500.0,0.00018835,2]
[354969162,1740850696080,-500.0,0.00019109,2]
[354969163,1740850696100,-500.0,0.00019383,2]
[354969164,1740850696123,-417.3926408,0.00019417,2]
[354969165,1740850696145,-500.0,0.00019657,2]
[354969166,1740850696181,-500.0,0.00019931,2]
[354969167,1740850696206,-374.56576172,0.00020205,2]
[354969168,1740850696229,-391.99,0.00020537,2]
[354969169,1740850696253,-417.3926408,0.0002059,2]
[354969170,1740850696276,-150.75,0.00020808,2]
[354969171,1740850696300,-202.69,0.00020902,2]
[354969172,1740850696322,-250.0,0.00020902,2]
[354969173,1740850696345,-950.38887,0.00021,2]
[354969174,1740850696369,-151.10544117,0.00021042,2]
[354969175,1740850696393,-161.87440623,0.00021049,2]
[354969176,1740850696417,-150.8092802,0.000214,2]
[354969177,1740850696441,-950.38888,0.0002142,2]
[354969178,1740850696467,-417.3926408,0.00021762,3]
[354969179,1740850696489,-950.38887,0.0002204,2]
[354969180,1740850696514,-950.38888,0.0002267,2]
[354969181,1740850696544,-417.3926408,0.00022934,3]
[354969182,1740850696567,-950.38887,0.0002329,2]
[354969183,1740850696594,-373.59,0.00023781,2]
[354969184,1740850696617,-373.59,0.00023906,2]
[354969185,1740850696641,-532.821,0.00023916,2]
[354969186,1740850696663,-950.38888,0.0002392,2]
[354969187,1740850696689,-373.59,0.00024031,2]
[354969188,1740850696714,-417.3926408,0.00024107,3]
[354969189,1740850696745,-373.59,0.00024156,2]
[354969190,1740850696770,-373.59,0.00024282,2]
[354969191,1740850696795,-415.08,0.00024317,2]
[354969192,1740850696821,-373.59,0.00024407,2]
[354969193,1740850696844,-373.59,0.00024532,2]
[354969194,1740850696872,-217.84654335,0.00024557,2]
[354969195,1740850696898,-150.8092802,0.0002465,2]